Cogmind - Beta 16.1 *** ADVENTURER MODE // 2026.02.23 @ 19:51:57 Player: AiyaMitsu Result: Destroyed by G-34 Mercenary with Small Laser Performance ------------- Evolutions (1) 500 Regions Visited (2) 400 Robots Destroyed (7) 35 Value Destroyed (213) 213 Prototype IDs (0) 0 Alien Tech Used (0) 0 Bonus (0) 0 TOTAL SCORE: 1148 Bonus ------- None Cogmind --------- Core Integrity 0/400 Matter 174/300 Energy 100/100 System Corruption 0% Temperature Cool (6) Movement Core (350) Ox6 Location -9/Materials Parts ------- > --- POWER (1) -------- (None) > --- PROPULSION (2) --- (None) > --- UTILITY (4) ------ Large Storage Unit > --- WEAPON (2) ------- (None) > --- INVENTORY (15) --- Wheel Wheel Core Shielding Core Shielding Tractor Beam Mining Laser Peak State ------------ > --- POWER ------------ Light Ion Engine > --- PROPULSION ------- Improved Treads Improved Treads > --- UTILITY ---------- Large Storage Unit Tractor Beam > --- WEAPON ----------- Assault Rifle Light Assault Rifle > --- INVENTORY -------- Wheel Wheel Mining Laser [Rating: 9] Favorites ----------- Power Light Ion Engine Engine Light Ion Engine Propulsion Improved Treads Treads Improved Treads Leg Aluminum Leg Wheel Wheel Utility Large Storage Unit Device Tractor Beam Storage Large Storage Unit Weapon Assault Rifle Energy Gun Medium Laser Ballistic Gun Assault Rifle Special Weapon Mining Laser Build | -11 -10 -9 ------- Run | Yrd Mat Mat Slots Evolved 2 | . . 2 Power . | . . . Propulsion . | . . . Utility 2 | . . 2 Weapon . | . . . Parts Attached 16 | 8 6 2 Power 1 | 1 . . Engine 1 | 1 . . Core . | . . . Reactor . | . . . Propulsion 7 | 4 3 . Treads 3 | . 3 . Leg 2 | 2 . . Wheel 2 | 2 . . Hover . | . . . Flight . | . . . Utility 3 | . 3 . Device 1 | . 1 . Storage 2 | . 2 . Processor . | . . . Hackware . | . . . Protection . | . . . Artifact . | . . . Weapon 5 | 3 . 2 Energy Gun 1 | 1 . . Energy Cannon . | . . . Ballistic Gun 3 | 2 . 1 Ballistic Cannon . | . . . Launcher . | . . . Special Weapon 1 | . . 1 Impact Weapon . | . . . Slashing Weapon . | . . . Piercing Weapon . | . . . Special Melee Weapon . | . . . Unidentified Prototypes . | . . . Parts Lost 4 | . . 4 Power 1 | . . 1 Propulsion 1 | . . 1 Utility . | . . . Weapon 2 | . . 2 Highest Loss Streak 4 | . . 4 To Critical Strikes . | . . . Average Backups 4 | 1 5 6 Power . | . . . Propulsion 1 | 1 2 2 Utility 1 | . 1 3 Weapon . | . 1 1 Tool/Special . | . . . Unused Backups 4 | . 2 2 Power . | . . . Propulsion 1 | . 1 . Utility 2 | . . 2 Weapon 1 | . 1 . Tool/Special . | . . . Average Slot Usage (%) 68 | . 81 55 Engine 11 | . 14 9 Treads 21 | . 24 17 Leg 1 | . 2 . Storage 10 | . 9 11 Ballistic Gun 22 | . 28 16 Peak Build Rating 9 | 5 9 9 Average Rating 6 | 2 7 7 On Entrance 4 | . 5 8 Avg Prop Armor Cover (%) . | . . . Naked Turns . | . . . Heaviest Build 28 | 6 27 28 Greatest Support 46 | 20 46 46 Greatest Overweight (x) 6 | . . 6 Average Overweight (x) . | . . . Largest Inventory Capacity 15 | 5 15 15 Average Capacity 11 | 5 12 15 Most Carried 7 | 5 7 7 Average Carried 4 | 1 5 6 Final Capacity 15 | 5 15 15 Final Carried 6 | 5 6 6 Class Distribution -------------------- 100% | Mutant Dominant Class ---------------- Mutant | -10/Materials Mutant | -9/Materials Resources | -11 -10 -9 ----------- Run | Yrd Mat Mat Matter Collected 377 | 285 92 . Remotely . | . . . Salvage Created 263 | 62 92 109 Parts 11 | 2 5 4 Haulers Intercepted . | . . . Recyclers Shooed . | . . . Parts Field Recycled . | . . . Retrieved Matter . | . . . Parts Self-Destructed . | . . . Prevented . | . . . Parts Restored . | . . . Kills | -11 -10 -9 ------- Run | Yrd Mat Mat Combat Hostiles Destroyed 6 | 1 2 3 Guns 6 | 1 2 3 Classes Destroyed 4 | 2 . 2 Tunneler 1 | 1 . . Swarmer 1 | . . 1 Grunt 4 | 1 2 1 Duelist 1 | . . 1 Best Kill Streak 3 | 2 2 3 Combat Bots Only 3 | 1 2 3 Max Kills in Single Turn 1 | 1 1 1 Gunslinging . | . . . Exploded . | . . . Melee . | . . . Uniques/NPCs Destroyed . | . . . Combat | -11 -10 -9 -------- Run | Yrd Mat Mat Hostile Shots Fired 177 | 4 3 170 Missed 40 | . 2 38 Hits 137 | 4 1 132 Melee 4 | . . 4 Projectile 133 | 4 1 128 Critical Strikes 4 | . . 4 Damage Taken 1145 | 33 13 1099 Core 415 | . 13 402 Absorbed by Shields . | . . . Ignored by Resistances 367 | 11 4 352 Core Remaining (%) 97 | 100 94 . Volleys Fired 23 | 3 6 14 Largest 2 | 2 2 2 Hottest 43 | 40 40 43 Shots Fired 45 | 6 12 27 Gun 45 | 6 12 27 Cannon . | . . . Launcher . | . . . Special . | . . . Kinetic 45 | 6 12 27 Thermal . | . . . Explosive . | . . . Electromagnetic . | . . . Robot Hit Streak 7 | 3 6 7 Robot Miss Streak 2 | 1 1 2 Penetration Max . | . . . Secondary Targets 3 | . . 3 Max Gunslinging Chain 1 | . . 1 Shots Hit Robots 33 | 3 9 21 Core Hits 16 | 3 6 7 Critical Kills . | . . . Critical Parts Destroyed . | . . . Critical Strikes . | . . . Melee Attacks . | . . . Impact . | . . . Slashing . | . . . Piercing . | . . . Sneak Attacks . | . . . Combat Hostiles . | . . . Follow-up Attacks . | . . . Damage Inflicted 427 | 49 94 284 Guns 422 | 45 94 283 Cannons . | . . . Explosions . | . . . Melee . | . . . Ramming 5 | 4 . 1 Kinetic 422 | 45 94 283 Thermal . | . . . Explosive . | . . . Electromagnetic . | . . . Impact . | . . . Slashing . | . . . Piercing . | . . . Highest Corruption 1 | . 1 . Average Corruption 1 | . 1 . Corruption Purged . | . . . Corruption Blocked . | . . . Overload Shots . | . . . Overflow Damage . | . . . Projectiles . | . . . Explosions . | . . . Melee . | . . . Knockbacks . | . . . Impact . | . . . Kinetic . | . . . Secondary . | . . . Self-Inflicted Damage . | . . . Shots . | . . . Rammed 3 | . . 3 Targets Rammed 4 | 1 . 3 Kicked 1 | 1 . . Crushed . | . . . Highest Temperature 18 | 12 9 18 Average Temperature 7 | 7 9 7 Received Heat Transfer 579 | 24 9 546 Siege Activations . | . . . Martial Activations . | . . . Shielding Activations . | . . . Robots Disrupted . | . . . Combat Hostiles . | . . . Robots Corrupted . | . . . Combat Hostiles . | . . . Parts Fried . | . . . Impact Corruptions . | . . . Robots Melted . | . . . Combat Hostiles . | . . . Parts Melted . | . . . Heat Transferred . | . . . Parts Sabotaged . | . . . Parts Stolen . | . . . Parts Stripped . | . . . Power Chain Reactions . | . . . Alert | -11 -10 -9 ------- Run | Yrd Mat Mat Maximum Alert Level . | . . . Low Security (%) 100 | 100 100 100 Level 1 . | . . . Level 2 . | . . . Level 3 . | . . . Level 4 . | . . . Level 5 . | . . . High Security . | . . . Max Security . | . . . Peak Influence 50 | 20 40 50 Initial 5 | . 5 . Average 4 | 2 7 4 Influence Increases 145 | 25 50 70 Destroy 0b10 Robot/C 120 | 20 40 60 Destroy 0b10 Robot/NC 5 | 5 . . Destroy Leader 20 | . 10 10 Influence Decreases 145 | 15 60 70 Entered New Map 5 | . 5 . Time Decay 100 | 15 55 30 Lost Part 40 | . . 40 Squads Dispatched 1 | . . 1 Investigation . | . . . Extermination . | . . . Reinforcement 1 | . . 1 Assault . | . . . Garrison . | . . . Intercept . | . . . Searches Triggered . | . . . Construction Impeded . | . . . Haulers Reinforced . | . . . Active Scanning Responses . | . . . Cargo Convoy Interrupts . | . . . Stealth | -11 -10 -9 --------- Run | Yrd Mat Mat Distress Signals 1 | . 1 . Communications Jammed . | . . . Distress Signals . | . . . Times Spotted 18 | 1 5 12 Peak Tracking Total 10 | 1 4 10 Tactical Retreats . | . . . Traps | -11 -10 -9 ------- Run | Yrd Mat Mat Traps Triggered 1 | . 1 . Indirectly . | . . . Trap Hack Attempts . | . . . Triggered . | . . . Disarmed . | . . . Reprogrammed . | . . . Reused . | . . . Traps Extracted . | . . . Installed . | . . . Triggered . | . . . Machines | -11 -10 -9 ---------- Run | Yrd Mat Mat Machines Disabled . | . . . Max in Single Turn . | . . . Machines Repaired . | . . . Machines Dismantled . | . . . Machines Sabotaged . | . . . Overloaded Fab Kills . | . . . Hacking | -11 -10 -9 --------- Run | Yrd Mat Mat Machines Accessed . | . . . Terminals . | . . . Fabricators . | . . . Repair Stations . | . . . Recycling Units . | . . . Scanalyzers . | . . . Garrison Access . | . . . Total Hacks . | . . . Successful . | . . . Failed . | . . . Catastrophic . | . . . Database Lockouts . | . . . Manual . | . . . Terminals . | . . . Fabricators . | . . . Repair Stations . | . . . Recycling Units . | . . . Scanalyzers . | . . . Garrison Access . | . . . Terminal Hacks . | . . . Fabricator Hacks . | . . . Repair Station Hacks . | . . . Recycling Unit Hacks . | . . . Scanalyzer . | . . . Garrison Access Hacks . | . . . Unauthorized Hacks . | . . . Terminals . | . . . Fabricators . | . . . Repair Stations . | . . . Recycling Units . | . . . Scanalyzers . | . . . Garrison Access . | . . . Data Cores Recovered . | . . . Used . | . . . Hacking Detections . | . . . Full Trace Events . | . . . Feedback Events . | . . . Feedback Blocked . | . . . Robot Schematics Acquired . | . . . Robots Built . | . . . Authchips . | . . . Time . | . . . Total Robot Build Rating . | . . . Part Schematics Acquired . | . . . Parts Built . | . . . Authchips . | . . . Time . | . . . Total Part Build Rating . | . . . Part Studies Acquired . | . . . Parts Repaired . | . . . Time . | . . . Parts Recycled . | . . . Recycled Matter . | . . . Retrieved Matter . | . . . Retrieved Components . | . . . Parts Scanalyzed . | . . . Part Schematics Acquired . | . . . Parts Damaged . | . . . Bothacking | -11 -10 -9 ------------ Run | Yrd Mat Mat Used RIF Installer . | . . . Robots Hacked . | . . . Non-combat . | . . . Combat . | . . . Robot Hacks Applied . | . . . Relay Couplers Released . | . . . Fabnet Peak Effective % . | . . . Robots Rewired . | . . . Allies Hacked . | . . . Hacks Repelled . | . . . Allies | -11 -10 -9 -------- Run | Yrd Mat Mat Total Allies . | . . . Largest Group . | . . . Highest-Rated Group . | . . . Highest-Rated Ally . | . . . Total Orders . | . . . Ally Attacks . | . . . Total Damage . | . . . Kills . | . . . Allies Corrupted . | . . . Allies Melted . | . . . Intel | -11 -10 -9 ------- Run | Yrd Mat Mat Active Infowar (turns) . | . . . Robot Analysis Total . | . . . Derelict Logs Recovered . | . . . Drone Launches . | . . . Drone Recoveries . | . . . Exploration | -11 -10 -9 ------------- Run | Yrd Mat Mat Turns Passed 777 | 211 289 277 Spaces Moved 381 | 106 149 126 Core 55 | 45 . 10 Treads 253 | . 137 116 Legs 71 | 59 12 . Wheels 2 | 2 . . Hover . | . . . Flight . | . . . Fastest Speed 50 | 50 120 160 Average Speed 144 | 89 156 177 Slowest Speed 350 | 120 160 350 Overloaded Moves . | . . . Propulsion Burnouts . | . . . Robots Hopped . | . . . Potential Cave-ins . | . . . Cave-ins Triggered . | . . . Exploration Rate (%) 15 | 5 30 11 Regions Visited 2 Branch Regions . Pre-discovered Areas . | . . . Known Exits Taken . | . . . Unknown Exits Taken 2 | 1 1 . Scrap Searched . | . . . Spaces Dug . | . . . Terrain Destroyed . | . . . Melee . | . . . Projectile . | . . . AOE . | . . . Terrain Rammed . | . . . Walls Destroyed . | . . . Machines Disabled . | . . . Actions | -11 -10 -9 --------- Run | Yrd Mat Mat Total 563 | 217 198 148 Wait 98 | 79 19 . Move 379 | 105 148 126 Hop . | . . . Pick Up 21 | 10 10 1 Fast Attach . | . . . Attach 18 | 10 6 2 Detach 7 | 5 1 1 Swap 4 | 4 . . Drop 9 | . 8 1 Fire 23 | 3 6 14 Melee . | . . . Ram 3 | . . 3 Kick 1 | 1 . . Crush . | . . . Escape Stasis . | . . . Rewire . | . . . Trap . | . . . Miscellaneous . | . . . Route ------- -11/Scrapyard -10/Materials -9/Materials History --------- Turn | Location | Event 2 | -11/Scrapyard | Met Revision 17 168 | -11/Scrapyard | Discovered new exit (range 8) 212 | -11/Scrapyard | Entered Materials 345 | -10/Materials | Build established: Mutant 477 | -10/Materials | Discovered new exit (range 15) 501 | -10/Materials | Entered another Materials area 501 | -9/Materials | Evolved 2 slots: Utility x2 750 | -9/Materials | Core integrity fell below 50% 766 | -9/Materials | Lost 4 parts (1p1n2w) 774 | -9/Materials | Core integrity fell below 20% 778 | -9/Materials | Destroyed by G-34 Mercenary with Small Laser Last Messages --------------- M-13 Machinist repairs G-34 Mercenary. L-31 Rogue destroyed. Switching to secondary target: G-47 Trooper. Critical hit (Burn: +37). R-06 Scavenger collects Lgt. Ion Engine. R-06 Scavenger collects Melee Analysis Suite. R-06 Scavenger collects Imp. Aluminum Leg. G-34 Mercenary destroyed. Switching to secondary target: G-47 Trooper. R-06 Scavenger collects Lgt. Assault Rifle. R-06 Scavenger collects Sml. Laser. R-06 Scavenger collects Imp. Treads. Assault Rifle destroyed. Lgt. Ion Engine destroyed. Hvy. Assault Rifle destroyed. Imp. Treads destroyed. Slammed into S-10 Pest. Slammed into G-34 Mercenary. K-01 Serf collects debris. [Achievement: First Step to Greatness] Map ----- +----------------------------------------------------+ | ????????????????????????????????????? | | ????????????????????????????????????? | | ????????????????????????????????????? | | ????????????????????????????????????? | | ????????????????????????????????????? | | ????????????????????????????????????? | | ?????????????###########????????????? | | ?????????????# [ #####????????? | | ?????????????# """ # #????????? | | ?????????????# """ # #????????? | | ?????????????# """ # #????????? | | ?????????????# "" + #????????? | | ?????????????# S"" # #????????? | | ?????????????# "" # #????????? | | ?????????????# # #????????? | | ?????????????########### #???? ??? | | ?????????????# # #??""" ??? | | ?????????????# "S # # """""??? | | ?????????????? """ + + """""??? | | ?????????????# "" # # """""??? | | ?????????????# # #??""" ??? | | ?????????????# """?# #???? ??? | | ?????????????# = """?# k#????????? | | ?????????????# ""??# ########?? | | ?????????????########??# g # #?? | | ?????????############### @ + """ #?? | | ?????????# gsg # """ #?? | | ?????????# g # """ #?? | | ?????????# # #?? | | ??######## %############### #?? | | ??# # =%########??????########?? | | ??# #%* # #???????????????? | | ??# + / #???????????????? | | ??# """" #% # """ #???????????????? | | ??# """" # # """ #???????????????? | | ??# """" # # """ #???????????????? | | ########## # #???????????????? | | # ##########?????????????? | | [ # # #?????????????? | | + + #?????????????? | | """ # # [ #?????????????? | | " " """ # # #?????????????? | | ?"Y" """ # #? """ #?????????????? | | ???" """ # #?""""" #?????????????? | | ??? # #??"""" #?????????????? | | ????###### #??"""" ???????????????? | | ?????????# #???"" ????????????????? | | ????????? #??????????????????????? | | ????????? #??????????????????????? | | ???????? #??????????????????????? | +----------------------------------------------------+ Best States ------------- Heat Dissipation 28 Energy Generation 10 Energy Capacity 125 Matter Stores 244 Matter Capacity 300 Sight Range 16 Terrain Scan Density 10 Resistance: KI 20 Resistance: TH 20 Resistance: EX 20 Resistance: EM 20 Resistance: I 20 Resistance: S 20 Resistance: P 20 Evasion (%) 55 Recoil Reduction 2 Offensive Hacking 10 Item Schematics ----------------- None Robot Schematics ------------------ None Fabricated ------------ Nothing Repaired ---------- Nothing Studied --------- None Alien Tech Used ----------------- None Achievements -------------- First Step to Greatness For Emergencies Only Uninvited Guest Challenges ------------ None Game ------ Seed DeliveryFlakReplica Manual? 0 Play Time 00:32:01 Cumulative 0.4 hours Start 2026.02.23 @ 18:10:21 End 2026.02.23 @ 19:51:57 Sessions 1 Manual Loads 0 Difficulty Adventurer Special Mode None Game No. 1 Rogue 0 Adventurer 1 Explorer 0 Win Type - Total 0 Types 0/0/0/0/0/0/0/0/0/0 Lore% 0 Gallery% 0 Achievement% 0 Wizard Run 0 Options --------- Layout 1 ASCII 0 Keyboard 0 Movement Numpad Keybinds 0 Fullscreen 2 Font 24/Terminus Map View 25x17 Zoom Use 91% Tactical HUD 0 Map Filters NONE Filters NONE Steam 1 RUN: a6f1577c-ea25-411c-8cdc-02032d75098f